bitfinex/quotes_ETHUSD_20251009
["timestamp","ask_amount","ask_price","bid_price","bid_amount"]
[1760036796917,0.4384,4323.8,4323.4,2.31299093]
[1760036797082,1e-08,4323.9,4323.5,3.239]
[1760036797533,0.6656,4323.8,4321.4,2.36704537]
[1760036797818,0.6656,4323.8,4323.1,2.31313574]
[1760036797966,0.6656,4323.8,4322.5,5.369]
[1760036797967,0.6656,4323.8,4323.2,7.40310093]
[1760036798174,0.6656,4323.8,4323.3,2.685]
[1760036798375,0.4384,4323.7,4322.3,0.4486]
[1760036798590,0.4384,4323.7,4323.1,2.31315059]
[1760036798869,0.4384,4323.7,4323.2,2.955]
[1760036799368,0.4384,4323.7,4323.1,2.31315059]
[1760036799369,2.31304751,4323.4,4322.4,0.45840311]
[1760036799571,0.4384,4323.3,4322.3,2.31457046]
[1760036799824,2.31315897,4323.1,4322.3,2.31457046]
[1760036800109,0.4384,4323.0,4322.3,2.77097648]
[1760036800276,0.4384,4323.0,4322.4,6.471]
[1760036800474,2.75161212,4323.0,4322.5,6.534]
[1760036800807,0.4384,4322.9,4322.5,8.939]
[1760036801194,0.4384,4322.8,4322.5,8.939]
[1760036801511,0.4384,4322.7,4322.6,6.534]
[1760036802007,2.75176895,4322.7,4322.6,6.534]
[1760036802374,2.31342247,4322.6,4322.3,0.001]
[1760036802576,2.31347599,4322.5,4322.4,6.536]
[1760036802904,2.75187599,4322.5,4322.4,6.536]
[1760036804880,0.4384,4322.5,4322.4,6.536]
[1760036805080,2.31352952,4322.4,4322.3,0.001]
[1760036805514,2.78332952,4322.4,4322.3,0.001]
[1760036805716,0.4698,4322.4,4322.3,6.537]
[1760036806025,0.4698,4322.4,4322.3,6.539]
[1760036807183,2.78332952,4322.4,4322.3,6.539]
[1760036807419,0.4698,4322.4,4322.3,6.539]
[1760036807714,2.78332952,4322.4,4322.3,0.001]
[1760036809295,0.4698,4322.4,4322.3,0.001]
[1760036809600,2.78332952,4322.4,4322.3,0.001]
[1760036809780,0.4698,4322.4,4322.3,0.001]
[1760036809982,2.78332952,4322.4,4322.3,0.001]
[1760036812638,0.4698,4322.4,4322.3,0.001]
[1760036813024,2.78332952,4322.4,4322.3,0.001]
[1760036813827,2.31342822,4322.6,4322.3,0.001]
[1760036813828,1.92200001,4323.9,4322.3,6.35]
[1760036814033,0.1152,4322.5,4322.4,2.31352952]
[1760036814348,0.585,4322.5,4322.3,0.001]
[1760036814531,2.89847809,4322.5,4322.3,0.001]
[1760036815341,2.31352952,4322.4,4322.3,0.001]
[1760036815710,2.78332952,4322.4,4322.3,0.001]
[1760036816522,0.4698,4322.4,4322.3,0.001]
[1760036816925,2.78332952,4322.4,4322.3,0.001]
[1760036817242,0.4698,4322.4,4322.3,0.001]
[1760036817853,2.78332952,4322.4,4322.3,0.001]
[1760036818014,0.1152,4322.5,4322.3,0.001]
[1760036818347,0.4418,4322.4,4322.3,0.001]
[1760036819929,2.75532952,4322.4,4322.3,0.001]
[1760036820345,0.4418,4322.4,4322.3,0.001]
[1760036821256,4.67532952,4322.4,4322.3,0.001]
[1760036824656,4.67532952,4322.4,4322.3,0.001]
[1760036826776,0.4418,4322.8,4322.3,0.001]
[1760036826926,1.92,4322.7,4322.3,0.001]
[1760036827126,2.75517003,4322.7,4322.3,0.001]
[1760036827362,0.4418,4322.6,4322.3,0.001]
[1760036828358,1.92,4322.8,4322.3,0.001]
[1760036828559,0.4418,4322.5,4322.3,0.001]
[1760036828928,0.4418,4322.4,4322.3,0.001]
[1760036829134,4.67532952,4322.4,4322.3,0.001]
[1760036829762,2.3618,4322.4,4322.3,0.001]
[1760036830660,1.92,4322.4,4322.3,0.001]
[1760036831449,4.67532952,4322.4,4322.3,0.001]
[1760036835170,1.92,4322.4,4322.3,0.001]
[1760036835590,4.23352952,4322.4,4322.3,0.001]
[1760036835742,4.67532952,4322.4,4322.3,0.001]
[1760036842268,5.17228706,4322.4,4322.3,0.001]
[1760036843881,2.31417198,4321.2,4321.1,0.005]
[1760036844194,2.31417198,4321.2,4319.3,0.001]
[1760036844195,4.23422554,4321.1,4319.3,0.001]
[1760036844340,2.31470765,4320.2,4319.3,0.001]
[1760036844543,4.23470765,4320.2,4319.3,0.001]
[1760036844773,2.75650765,4320.2,4319.3,0.001]
[1760036845794,3.25171901,4320.2,4319.3,0.001]
[1760036846282,2.75650765,4320.2,4319.3,0.001]
[1760036847047,2.73650765,4320.2,4319.3,0.001]
[1760036847244,3.37010765,4320.2,4319.3,0.001]
[1760036847466,2.94841481,4320.0,4319.3,0.001]
[1760036847784,9.49341481,4320.0,4319.3,0.001]
[1760036848086,10.45054697,4320.0,4319.3,0.001]
[1760036848281,12.37054697,4320.0,4319.3,0.001]
[1760036848801,2.5536,4319.9,4319.1,0.005]
[1760036848966,2.7844,4319.2,4319.1,0.005]
[1760036849161,14.54597572,4319.2,4319.1,0.005]
[1760036849603,15.00877572,4319.2,4319.1,0.005]
[1760036850156,15.21568815,4319.2,4319.1,0.005]
[1760036850352,15.10150773,4319.2,4319.1,0.005]
[1760036850588,5.02157557,4319.2,4319.1,0.005]
[1760036850800,9.1616,4319.2,4319.1,0.005]
[1760036851179,11.47684356,4319.2,4319.1,0.005]
[1760036852472,9.1616,4319.2,4319.1,0.005]
[1760036853045,0.6936,4319.2,4319.1,0.005]
[1760036853205,1.92,4319.9,4319.1,0.005]
[1760036853206,0.2308,4319.9,4319.1,0.005]
[1760036853498,0.4628,4319.7,4319.1,0.005]
[1760036853789,0.4628,4319.7,4319.1,2.32028743]
[1760036853790,0.1152,4319.2,4319.1,2.32028743]
[1760036854290,0.1152,4319.2,4319.1,0.005]
[1760036854890,0.578,4319.2,4319.1,0.005]
[1760036856963,2.89324356,4319.2,4319.1,0.005]
[1760036857194,0.578,4319.2,4319.1,0.005]
[1760036857900,0.1152,4319.2,4319.1,0.005]
[1760036858083,0.578,4319.2,4319.1,0.005]
[1760036858292,0.1152,4319.2,4319.1,0.005]
[1760036858479,0.1152,4319.5,4319.4,2.31513636]
[1760036858682,2.3828,4320.2,4319.5,2.31503588]
[1760036858880,0.1152,4319.8,4319.5,2.31503588]
[1760036859093,0.1152,4319.8,4319.6,2.31500273]
[1760036859495,0.1152,4319.8,4319.4,2.31508286]
[1760036859798,0.1152,4319.8,4319.2,11.27223861]
[1760036859999,0.1152,4319.8,4319.2,12.48135701]
[1760036860379,0.1152,4319.8,4319.1,0.005]
[1760036860380,2.31514481,4319.4,4319.1,0.005]
[1760036860592,0.4628,4319.7,4319.1,0.006]
[1760036860918,0.2308,4320.3,4319.1,0.006]
[1760036861097,0.4628,4319.9,4319.1,0.006]
[1760036861298,0.4628,4319.9,4319.4,2.31512613]
[1760036861493,0.4628,4319.9,4319.5,2.31504134]
[1760036862014,2.31455712,4320.5,4319.5,2.31504134]
[1760036862015,1.92,4320.5,4319.8,2.31488146]
[1760036862384,2.31456416,4320.5,4319.8,2.31488146]
[1760036862785,0.4628,4320.4,4319.6,8.957]
[1760036862994,2.53716711,4321.3,4319.6,8.957]
[1760036862995,0.223,4321.3,4319.6,8.957]
[1760036863222,0.11612806,4321.7,4319.8,0.6336]
[1760036863522,0.4628,4321.6,4320.8,2.31435028]
[1760036863707,0.4628,4321.5,4320.0,0.6336]
[1760036864015,0.4628,4321.5,4319.9,2.62611]
[1760036864016,2.31416777,4321.3,4320.1,4.72175517]
[1760036864218,0.4628,4321.2,4320.2,2.31470617]
[1760036864388,2.77703577,4321.1,4320.2,2.31470617]
[1760036864585,0.4628,4321.0,4320.1,5.209]
[1760036864785,0.4628,4321.0,4320.5,2.31454005]
[1760036865103,0.4478,4321.7,4320.6,0.02314493]
[1760036865440,2.76170453,4321.7,4320.8,2.31436578]
[1760036865590,0.4478,4321.6,4320.8,2.31436578]
[1760036865918,0.4478,4321.6,4320.9,2.31433107]
[1760036866111,0.4478,4321.6,4320.8,2.3143815]
[1760036866420,0.4478,4321.6,4320.8,4.4583815]
[1760036867511,0.4478,4321.6,4320.9,2.31431388]
[1760036868021,0.4478,4321.6,4321.0,2.31427616]
[1760036868427,0.4478,4321.6,4320.8,2.144]
[1760036868428,0.4478,4321.6,4320.9,2.31428308]
[1760036868944,0.4478,4321.6,4320.9,2.31433266]
[1760036869149,0.4478,4321.6,4321.0,2.31427811]
[1760036869529,0.4478,4321.6,4321.1,2.31421777]
[1760036869728,2.1558,4321.9,4321.1,2.31417849]
[1760036869927,0.4478,4321.5,4321.1,2.31417849]
[1760036870133,0.4478,4321.4,4321.1,2.31417849]
[1760036872041,0.4478,4321.4,4321.0,2.31427246]
[1760036872240,0.4478,4321.3,4320.9,2.407]
[1760036872427,0.1152,4321.5,4320.8,2.31437335]
[1760036872428,0.4478,4321.2,4320.8,2.31437335]
[1760036872632,0.4478,4321.1,4320.9,6.386]
[1760036872816,0.1152,4321.5,4320.9,6.386]
[1760036873018,0.563,4321.5,4320.9,6.386]
[1760036873224,0.563,4321.5,4321.0,2.3142791]
[1760036873536,0.4478,4321.4,4321.0,2.3142791]
[1760036873710,0.4478,4321.3,4321.0,2.3142791]
[1760036874554,0.1152,4321.5,4321.0,2.3142791]
[1760036874735,0.4478,4321.4,4321.0,2.3142791]
[1760036874944,0.4478,4321.4,4320.9,8.70032821]
[1760036875258,0.1152,4321.5,4321.3,2.31406961]
[1760036875407,0.005,4321.9,4321.4,2.33720552]
[1760036875618,0.1202,4321.9,4321.6,2.31391697]
[1760036875822,0.1202,4321.9,4321.5,2.31400726]
[1760036876053,0.1202,4321.9,4321.5,6.57]
[1760036876054,0.4478,4321.8,4321.5,6.57]
[1760036876245,0.4478,4321.7,4321.2,0.1152]
[1760036876448,0.4478,4321.6,4321.5,2.31400616]
[1760036877323,0.4478,4321.6,4321.5,8.88400616]
[1760036878251,0.3584,4321.9,4321.5,8.88400616]
[1760036878461,0.4353,4321.8,4321.5,8.88400616]
[1760036878632,0.3584,4321.9,4321.6,2.31394569]
[1760036878936,0.4353,4321.7,4321.5,6.57]
[1760036879271,0.4353,4321.6,4321.2,0.1152]
[1760036879558,0.4353,4321.5,4321.3,11.28911843]
[1760036879932,0.4353,4321.5,4321.4,2.31406488]
[1760036880347,0.4353,4321.5,4320.6,2.31445642]
[1760036880348,0.4353,4321.5,4320.6,8.8824895]
[1760036880526,0.6785,4321.9,4320.7,0.02314439]
[1760036880854,0.6785,4321.9,4321.0,2.31425547]
[1760036881040,2.5569983,4321.9,4321.1,2.31418053]
[1760036881222,0.4353,4321.8,4321.2,2.31416562]
[1760036881663,0.4353,4321.8,4321.1,2.31417435]
[1760036881842,0.4353,4321.8,4321.3,2.31407727]
[1760036882154,0.4353,4321.8,4321.4,2.31404724]
[1760036882355,0.4353,4321.8,4321.2,5.249]
[1760036882554,0.007,4321.9,4321.8,2.31385071]
[1760036884063,0.007,4321.9,4321.8,8.88085071]
[1760036884250,0.007,4321.9,4321.8,9.34015071]
[1760036884629,3.1573,4321.9,4320.6,2.31449154]
[1760036884961,3.1573,4321.9,4320.4,2.31455592]
[1760036884962,2.31411852,4321.3,4320.4,2.31455592]
[1760036885165,0.4353,4321.2,4320.5,0.02314546]
[1760036885332,2.74950788,4321.2,4320.5,0.02314546]
[1760036885865,2.31423083,4321.1,4320.5,0.02314546]
[1760036886032,0.4353,4321.2,4320.5,0.02314546]
[1760036886901,0.4353,4321.2,4320.6,2.31444177]
[1760036887059,0.4353,4321.2,4320.7,0.02314439]
[1760036887229,0.4353,4321.1,4320.7,0.02314439]
[1760036887726,0.4353,4321.1,4320.6,2.31444177]
[1760036887939,0.4353,4321.1,4320.7,2.3144311]
[1760036888457,0.4353,4321.1,4320.4,1.899]
[1760036888627,0.4353,4321.1,4320.6,2.3144714]
[1760036889834,2.31412037,4321.3,4320.5,2.31454304]
[1760036890029,0.4353,4321.0,4320.6,6.57]
[1760036890232,1.92,4321.8,4319.4,11.94213636]
[1760036890233,0.4353,4320.9,4319.4,2.31513636]
[1760036890435,2.41615257,4321.8,4319.4,2.31513636]
[1760036890436,0.5505,4320.8,4320.2,2.31466285]
[1760036890661,0.5505,4320.8,4320.3,4.418]
[1760036890867,0.4353,4320.7,4320.3,6.73264319]
[1760036891066,0.1152,4320.8,4320.3,6.73264319]
[1760036891284,0.4353,4320.6,4320.3,6.73264319]
[1760036891472,0.4353,4320.6,4320.4,2.31459678]
[1760036891983,0.1152,4320.8,4320.3,4.418]
[1760036892192,0.4353,4320.5,4320.3,6.73263934]
[1760036892546,0.4353,4320.5,4320.3,4.418]
[1760036892750,0.4353,4320.5,4320.1,0.1152]
[1760036892980,0.1152,4320.8,4320.2,8.976]
[1760036893349,0.1152,4320.8,4320.4,2.31455619]
[1760036893747,0.4353,4320.7,4320.4,2.31455619]
[1760036894396,0.4353,4320.7,4320.5,2.31454083]
[1760036894686,0.1152,4320.8,4320.6,2.31448204]
[1760036895066,0.1152,4320.8,4320.5,2.31453681]
[1760036895669,0.5505,4320.8,4320.5,2.31453681]
[1760036895864,0.1152,4320.8,4320.5,2.31453681]
[1760036896186,0.4353,4320.7,4320.2,11.29070423]
[1760036896686,0.4353,4320.7,4320.4,2.31456451]
[1760036896868,0.4353,4320.7,4320.5,2.31452403]
[1760036897888,0.4353,4320.7,4320.2,8.976]
[1760036898090,0.1152,4320.8,4320.2,8.976]
[1760036898091,0.4353,4320.6,4320.3,2.31461692]
[1760036898603,0.4353,4320.6,4320.4,2.31458929]
[1760036900579,0.1152,4320.8,4320.2,2.31465879]
[1760036900779,0.4353,4320.7,4320.5,6.567]
[1760036901011,0.4353,4320.6,4320.5,6.567]
[1760036901303,0.4353,4320.6,4320.5,8.88154692]
[1760036901807,0.4353,4320.6,4320.5,6.568]
[1760036902307,2.74979335,4320.6,4320.5,6.568]
[1760036902513,0.4353,4320.6,4320.5,6.568]
[1760036903407,0.1152,4320.5,4320.4,6.569]
[1760036903811,0.5505,4320.5,4320.4,6.569]
[1760036904806,0.1152,4320.5,4320.4,6.569]
[1760036905606,0.5505,4320.5,4320.4,6.569]
[1760036905813,0.5505,4320.5,4320.3,2.31464728]
[1760036906008,0.5505,4320.5,4320.4,6.568]
[1760036906212,0.5505,4320.5,4320.4,8.88260049]
[1760036906517,0.5505,4320.5,4320.4,6.568]
[1760036907734,0.1152,4320.5,4320.4,8.88260049]
[1760036908200,0.1152,4320.8,4320.7,2.31443978]
[1760036908400,0.1152,4320.8,4320.7,8.88143978]
[1760036908721,0.002,4321.2,4321.1,2.31422554]
[1760036909018,0.002,4321.2,4321.1,11.28922554]
[1760036912687,0.002,4321.2,4321.1,12.36392554]
[1760036912887,0.002,4321.2,4321.1,13.83174782]
[1760036913512,0.002,4321.2,4321.1,11.42274782]
[1760036913716,0.002,4321.2,4321.1,13.38764782]
[1760036913912,0.002,4321.2,4320.1,0.1751]
[1760036914204,0.4693,4321.1,4320.6,2.31449167]
[1760036914538,0.4693,4321.0,4320.6,2.31449167]
[1760036914710,0.002,4321.2,4320.5,3.817]
[1760036914915,0.002,4321.2,4320.5,6.13153564]
[1760036914916,0.4693,4320.9,4320.5,6.13153564]
[1760036915236,0.4713,4321.2,4320.8,2.31438622]
[1760036915403,0.4713,4321.2,4320.9,6.565]
[1760036915404,0.4693,4321.1,4320.9,6.565]
[1760036915602,0.4693,4321.0,4320.9,6.565]
[1760036916240,0.4693,4321.0,4320.1,0.6336]
[1760036916533,0.4693,4320.9,4320.2,7.353]
[1760036916956,0.4693,4320.9,4320.3,2.31465407]
[1760036917141,0.4693,4320.8,4320.3,2.31465407]
[1760036917845,2.31424148,4321.1,4320.4,2.31458124]
[1760036918140,0.4693,4320.7,4320.4,2.31458124]
[1760036918437,0.4693,4321.0,4320.2,7.353]
[1760036918644,0.4693,4321.0,4320.5,2.31453411]
[1760036918817,0.4693,4321.0,4320.6,6.564]
[1760036919021,0.4693,4320.9,4320.6,6.564]
[1760036919245,0.4693,4320.8,4320.6,6.564]
[1760036920643,0.4713,4321.2,4320.6,6.564]
[1760036921049,0.4713,4321.2,4320.6,8.87848978]
[1760036922654,0.1152,4320.8,4320.6,8.87848978]
[1760036923319,0.1152,4320.8,4320.7,2.31443978]
[1760036923516,0.1152,4321.1,4320.7,2.31443978]
[1760036923716,0.5845,4321.1,4320.7,2.31443978]
[1760036923920,0.4693,4321.0,4320.7,2.31443978]
[1760036925245,0.1152,4321.1,4320.4,0.1152]
[1760036925444,0.4485,4321.0,4320.5,8.967]
[1760036925644,0.1152,4321.1,4320.5,8.967]
[1760036925645,0.4485,4320.9,4320.5,8.967]
[1760036925955,0.4485,4320.9,4320.6,2.31449335]
[1760036926122,0.1152,4321.1,4320.8,2.31434778]
[1760036926322,0.4485,4321.0,4320.9,6.561]
[1760036926723,0.4485,4321.0,4320.9,6.56]
[1760036928579,0.1152,4321.1,4320.9,6.56]
[1760036928876,0.002,4321.2,4320.9,8.8742939]
[1760036929035,0.002,4321.2,4320.9,6.56]
[1760036929236,0.4485,4321.1,4321.0,6.559]
[1760036930033,0.4485,4321.1,4319.3,0.4548]
[1760036930263,0.4485,4321.1,4320.1,2.31474949]
[1760036930264,2.31436849,4320.9,4320.1,2.31474949]
[1760036930477,2.76272567,4321.1,4320.2,0.312]
[1760036930478,2.76289098,4320.8,4320.2,0.312]
[1760036930867,2.31445205,4320.7,4320.2,0.312]
[1760036931383,0.4485,4320.6,4320.2,0.312]
[1760036931586,0.4485,4320.5,4320.0,2.31479425]
[1760036931755,2.31445205,4320.7,4320.3,2.423]
[1760036931756,0.4485,4320.4,4320.3,2.423]
[1760036933985,0.002,4321.0,4320.3,2.423]
[1760036934197,0.002,4321.0,4320.4,5.926]
[1760036934198,0.4485,4320.9,4320.4,5.926]
[1760036934494,2.31629426,4321.0,4320.4,5.926]
[1760036934495,0.4485,4320.8,4320.4,5.926]
[1760036934787,2.31629426,4321.0,4320.4,5.926]
[1760036934788,0.4485,4320.7,4320.4,5.926]
[1760036934975,2.31629426,4321.0,4320.4,5.926]
[1760036935286,0.4485,4320.9,4320.4,5.926]
[1760036935803,2.76285185,4320.9,4320.4,5.926]
[1760036936010,0.4485,4320.8,4320.4,5.926]
[1760036936505,0.002,4321.0,4320.4,8.24056245]
[1760036936506,0.4485,4320.7,4320.4,8.24056245]
[1760036936705,0.002,4321.0,4320.4,8.24056245]
[1760036937039,0.002,4321.0,4320.5,2.31454444]
[1760036937182,0.002,4321.0,4320.4,6.3808]
[1760036937374,0.002,4321.0,4320.6,2.31448649]
[1760036937778,0.4614,4321.0,4320.6,2.31448649]
[1760036938310,0.4614,4321.0,4320.7,6.559]
[1760036938608,0.1152,4320.9,4320.7,8.87343431]
[1760036940310,0.1152,4320.9,4320.8,2.31438622]
[1760036941010,0.002,4321.0,4320.9,2.31433266]
[1760036941199,0.002,4321.0,4320.9,2.88433266]
[1760036942405,0.002,4321.0,4320.9,2.90747598]
[1760036943120,0.002,4321.0,4320.9,2.42953266]
[1760036943544,0.002,4321.0,4320.9,11.39353266]
[1760036943711,0.002,4321.0,4320.9,13.26460455]
[1760036948616,0.002,4321.0,4320.9,10.49547189]
[1760036948818,0.002,4321.0,4320.9,10.95027189]
[1760036949123,0.002,4321.0,4320.9,13.26460455]
[1760036949704,0.002,4321.0,4320.9,13.89820455]
[1760036950938,0.002,4321.2,4321.0,0.6336]
[1760036951244,1e-08,4321.5,4321.4,2.94766488]
[1760036951459,1e-08,4321.5,4321.4,9.50366488]
[1760036951662,1e-08,4321.5,4321.4,10.07366488]
[1760036952315,1e-08,4321.5,4321.4,3.51766488]
[1760036952515,1e-08,4321.5,4321.4,22.10466488]
[1760036952717,1e-08,4321.5,4321.4,24.35643533]
[1760036953362,1e-08,4321.5,4321.4,5.76943533]
[1760036953524,1e-08,4321.5,4321.4,3.51766488]
[1760036953718,1e-08,4321.5,4321.4,12.47766488]
[1760036954951,1e-08,4321.5,4321.4,10.07166488]
[1760036955121,1e-08,4321.5,4321.4,12.47766488]
[1760036955821,1e-08,4321.5,4321.4,3.51766488]
[1760036956166,1e-08,4321.5,4321.4,4.21668377]
[1760036956324,1e-08,4321.5,4321.4,13.17568377]
[1760036957416,1e-08,4321.5,4321.4,4.21668377]
[1760036957653,1e-08,4321.5,4321.4,13.17468377]
[1760036958857,1e-08,4321.5,4321.4,13.05948377]
[1760036959080,1e-08,4321.5,4321.4,10.65348377]
[1760036959242,1e-08,4321.5,4321.4,13.05948377]
[1760036960780,1e-08,4321.5,4321.4,3.64668377]
[1760036961073,1e-08,4321.5,4321.4,12.60368377]
[1760036961250,1e-08,4321.5,4321.4,14.52368377]
[1760036961426,1e-08,4321.5,4321.4,14.97848377]
[1760036962857,1e-08,4321.5,4321.4,6.02148377]
[1760036963057,1e-08,4321.5,4321.4,14.97748377]
[1760036964761,1e-08,4321.5,4321.4,12.57148377]
[1760036965058,1e-08,4321.5,4321.4,14.97748377]
[1760036965874,1e-08,4321.5,4321.4,14.97648377]
[1760036968762,1e-08,4321.5,4321.4,15.09168377]
[1760036969445,1e-08,4321.5,4321.4,6.13668377]
[1760036969649,1e-08,4321.5,4321.4,14.63488377]
[1760036969885,1e-08,4321.5,4321.4,15.06288377]
[1760036971751,1e-08,4321.5,4321.4,14.94768377]
[1760036974413,0.002,4322.0,4321.9,2.94739717]
[1760036974602,0.002,4322.0,4321.9,11.73027486]
[1760036974793,0.002,4322.0,4321.9,12.13513689]
[1760036977310,0.002,4322.0,4321.9,5.59013689]
[1760036977501,0.002,4322.0,4321.9,14.53913689]
[1760036981321,0.002,4322.0,4321.9,5.59013689]
[1760036981523,0.002,4322.0,4321.9,14.53913689]
[1760036981723,0.002,4322.0,4321.9,14.65433689]
[1760036981925,0.005,4322.9,4322.8,2.94691544]
[1760036982121,0.005,4322.9,4322.8,12.42194556]
[1760036982420,0.005,4322.9,4322.8,12.84994556]
[1760036983292,0.005,4322.9,4322.8,14.76994556]
[1760036983812,0.005,4322.9,4322.8,5.82094556]
[1760036984023,0.005,4322.9,4322.8,14.76894556]
[1760036985326,0.007,4322.9,4322.8,14.76894556]
[1760036985824,0.007,4322.9,4322.8,14.76794556]
[1760036986725,0.007,4322.9,4322.8,5.82094556]
[1760036986925,0.007,4322.9,4322.8,4.23331544]
[1760036987100,0.007,4322.9,4322.3,0.6339]
[1760036987306,0.007,4322.9,4322.8,2.31331544]
[1760036987518,0.007,4322.9,4322.8,5.00031544]
[1760036987831,0.007,4322.9,4322.8,2.31331544]
[1760036987998,0.007,4322.9,4322.8,11.26031544]
[1760036988813,0.007,4322.9,4322.3,0.6339]
[1760036989038,0.007,4322.9,4322.8,2.31331544]
[1760036989336,0.007,4322.9,4322.8,5.21331544]
[1760036990343,0.007,4322.9,4322.8,2.31331544]
[1760036990507,0.007,4322.9,4322.8,11.26031544]
[1760036991236,0.4768,4322.9,4322.4,2.31348663]
[1760036991402,0.4698,4322.8,4322.5,3.841]
[1760036991599,0.4698,4322.7,4321.5,0.4588]
[1760036991806,0.4698,4322.7,4322.1,2.31364102]
[1760036992006,0.4698,4322.6,4322.2,8.947]
[1760036992207,0.4698,4322.5,4322.2,8.947]
[1760036992407,2.42852242,4322.8,4322.0,0.1152]
[1760036992408,0.4698,4322.4,4322.0,0.1152]
[1760036992620,0.4698,4322.4,4322.1,2.61]
[1760036992908,0.4698,4322.3,4322.1,2.61]
[1760036993138,0.4698,4322.2,4322.1,2.61]
[1760036993445,0.007,4322.9,4322.2,0.6336]
[1760036993808,0.007,4322.9,4322.8,2.31331544]
[1760036994020,0.007,4322.9,4322.8,7.63831544]
[1760036994336,0.007,4322.9,4322.8,6.542]
[1760036996154,0.007,4322.9,4322.8,8.85531544]
[1760036999349,0.007,4322.9,4322.8,6.542]
[1760036999350,0.4406,4322.9,4322.8,6.542]
[1760036999554,0.4406,4322.9,4321.9,0.7]
[1760036999555,2.7539037,4322.9,4321.9,0.7]
[1760036999857,0.4336,4322.8,4321.9,0.7]
[1760037000048,2.31347599,4322.5,4322.0,2.628]
[1760037000231,2.31374363,4322.0,4321.9,0.7]
[1760037000431,2.74734363,4322.0,4321.9,0.7]
[1760037000951,0.4336,4322.0,4321.9,0.7]
[1760037001859,2.74734363,4322.0,4321.9,0.7]
[1760037002653,0.4336,4322.0,4321.9,0.7]
[1760037002853,0.4336,4322.6,4321.9,0.7]
[1760037003079,0.4336,4322.6,4322.1,2.31368796]
[1760037003252,0.4336,4322.5,4322.0,7.50871634]
[1760037003466,0.1152,4322.4,4322.0,7.50871634]
[1760037003662,0.5488,4322.4,4322.0,7.50871634]
[1760037004066,0.5488,4322.4,4322.0,5.195]
[1760037004266,0.4336,4322.3,4321.9,0.7]
[1760037004576,0.1152,4322.1,4321.9,0.7]
[1760037004975,0.4336,4322.0,4321.9,0.7]
[1760037006456,2.74734363,4322.0,4321.9,0.7]
[1760037010947,0.4336,4322.0,4321.9,0.7]
[1760037011149,1.92,4322.5,4321.9,0.7]
[1760037011342,0.1152,4322.2,4321.9,2.077]
[1760037011569,0.5488,4322.2,4321.9,4.39078579]
[1760037011954,0.5488,4322.2,4321.9,2.077]
[1760037012198,0.1152,4322.2,4322.1,2.3136901]
[1760037012704,0.4336,4322.6,4321.9,4.39079132]
[1760037012705,0.1152,4322.4,4322.2,2.3135985]
[1760037013179,0.1152,4322.4,4322.0,2.31369143]
[1760037013379,0.1152,4322.4,4321.9,2.077]
[1760037013579,0.1152,4322.4,4322.2,2.3135954]
[1760037013980,0.1152,4322.4,4322.1,2.31367916]
[1760037014847,0.5488,4322.4,4321.9,2.077]
[1760037015081,0.5488,4322.4,4322.0,2.31373029]
[1760037015443,0.4336,4322.3,4322.0,2.31373029]
[1760037016081,0.4336,4322.3,4321.9,4.39078383]
[1760037016283,0.1152,4322.4,4321.9,4.39078383]
[1760037016493,0.4336,4322.2,4322.0,2.31374197]
[1760037016696,0.1152,4322.4,4321.9,2.077]
[1760037016853,0.1152,4322.4,4322.2,2.31363155]
[1760037017297,0.1152,4322.4,4321.9,4.39078971]
[1760037017298,0.1152,4322.4,4322.1,2.31367821]
[1760037017593,0.5488,4322.4,4322.1,2.31367821]
[1760037018381,0.5488,4322.4,4322.0,2.31373222]
[1760037018593,0.1152,4322.1,4322.0,6.544]
[1760037018760,0.1152,4322.1,4321.9,0.7]
[1760037018761,2.86250352,4322.1,4321.9,0.7]
[1760037019091,0.4336,4322.0,4321.9,0.7]
[1760037026775,2.74734363,4322.0,4321.9,0.7]
[1760037029010,0.4647,4322.0,4321.9,0.7]
[1760037030396,2.77844363,4322.0,4321.9,0.7]
[1760037031717,0.4647,4322.0,4321.9,0.7]
[1760037031907,0.4667,4322.3,4321.9,0.7]
[1760037032108,0.4647,4322.2,4321.9,0.7]
[1760037032405,0.4647,4322.1,4321.9,0.7]
[1760037032777,0.002,4322.3,4321.9,0.7]
[1760037032977,0.4647,4322.2,4321.9,0.7]
[1760037033173,0.4647,4322.2,4321.9,3.01378587]
[1760037033499,0.4647,4322.1,4321.9,0.7]
[1760037033700,0.002,4322.3,4321.9,0.7]
[1760037033701,0.002,4322.3,4322.0,2.31374363]
[1760037034012,0.1152,4322.2,4322.0,0.53285813]
[1760037034380,0.1152,4322.2,4321.9,3.01379307]
[1760037034581,0.1152,4322.2,4321.9,0.7]
[1760037034890,0.5799,4322.2,4321.9,0.7]
[1760037036815,0.4647,4322.1,4321.9,0.7]
[1760037037020,0.4647,4322.0,4321.9,6.401]
[1760037037223,0.5799,4322.0,4321.9,6.401]
[1760037037880,0.5799,4322.0,4321.9,0.7]
[1760037037881,2.89364363,4322.0,4321.9,0.7]
[1760037041510,3.38964333,4322.0,4321.9,0.7]
[1760037043024,5.42299969,4322.0,4321.9,0.7]
[1760037043619,10.63247788,4322.0,4321.9,0.7]
[1760037043798,10.01296894,4322.0,4321.9,0.7]
[1760037044118,10.70794829,4322.0,4321.9,0.7]
[1760037045020,11.32727325,4322.0,4321.9,0.7]
[1760037045411,10.70794829,4322.0,4321.9,0.7]
[1760037046336,5.30779969,4322.0,4321.9,0.7]